bitfinex/quotes_SOLUSD_20250317
["timestamp","ask_amount","ask_price","bid_price","bid_amount"]
[1742175655085,0.03,128.21,128.18,318.82]
[1742175655295,0.03,128.21,128.18,6.82]
[1742175655676,0.03,128.21,128.18,14.6214]
[1742175656785,0.03,128.21,128.18,25.27215757]
[1742175658001,0.03,128.21,128.2,10.65075757]
[1742175658581,0.03,128.21,128.16,0.063]
[1742175658796,10.65075757,128.18,128.16,0.063]
[1742175659688,18.64964886,128.17,128.16,0.063]
[1742175660398,10.65075757,128.19,128.16,0.063]
[1742175660593,29.30040643,128.2,128.16,0.063]
[1742175660786,18.64964886,128.2,128.16,0.063]
[1742175660979,18.64964886,128.2,128.16,10.71375757]
[1742175661180,0.03,128.21,128.17,10.65075757]
[1742175661593,0.03,128.21,128.18,10.65075757]
[1742175661781,0.03,128.21,128.2,10.65075757]
[1742175661981,0.03,128.21,128.2,18.45105757]
[1742175663308,0.03,128.21,128.2,33.44798071]
[1742175665180,0.03,128.21,128.2,345.16365757]
[1742175665983,0.03,128.21,128.2,337.36335757]
[1742175666217,0.03,128.21,128.2,345.16365757]
[1742175666384,0.03,128.21,128.2,345.44798071]
[1742175666738,2.4130934,128.25,128.23,20.0]
[1742175666884,2.4130934,128.25,128.24,17.47075757]
[1742175667593,2.4130934,128.25,128.24,6.82]
[1742175667791,2.4130934,128.25,128.24,17.47075757]
[1742175669203,0.03,128.3,128.28,0.28432314]
[1742175669381,0.03,128.3,128.29,23.45269555]
[1742175669989,0.03,128.3,128.29,335.73701869]
[1742175670813,0.03,128.3,128.29,31.53181869]
[1742175671624,0.03,128.3,128.29,39.42441869]
[1742175673723,0.03,128.3,128.29,43.31330757]
[1742175673923,0.03,128.3,128.29,355.31330757]
[1742175674295,0.03,128.3,128.29,338.70061202]
[1742175674501,0.03,128.3,128.28,7.7953]
[1742175674701,0.03,128.3,128.29,36.61269555]
[1742175674920,0.03,128.3,128.29,43.45269555]
[1742175676321,0.03,128.3,128.29,26.84]
[1742175676521,0.03,128.3,128.29,43.45269555]
[1742175677221,0.03,128.3,128.29,51.53181869]
[1742175677619,0.03,128.3,128.29,363.53181869]
[1742175678826,0.03,128.3,128.29,51.24749555]
[1742175679525,0.03,128.3,128.29,43.45269555]
[1742175679724,0.03,128.3,128.29,51.24749555]
[1742175680027,0.03,128.3,128.29,34.6348]
[1742175680224,0.03,128.3,128.29,51.24749555]
[1742175681636,0.03,128.3,128.28,16.61269555]
[1742175681940,0.03,128.3,128.27,16.61269555]
[1742175683808,0.03,128.3,128.26,24.40909555]
[1742175684025,0.03,128.3,128.26,16.61269555]
[1742175684730,0.03,128.3,128.26,328.61269555]
[1742175684917,0.03,128.3,128.26,336.40929555]
[1742175685612,16.64269555,128.3,128.25,16.61269555]
[1742175686028,0.03,128.3,128.26,16.61269555]
[1742175686814,7.8243,128.3,128.26,16.61269555]
[1742175688411,0.03,128.3,128.26,24.40919555]
[1742175688617,18.67964886,128.3,128.26,336.40919555]
[1742175688830,18.67964886,128.3,128.26,7.7965]
[1742175689032,18.67964886,128.3,128.26,24.40919555]
[1742175689629,18.67964886,128.3,128.27,16.61269555]
[1742175689828,16.64269555,128.3,128.25,14.6799]
[1742175690028,0.03,128.3,128.26,16.61269555]
[1742175694634,0.03,128.3,128.29,16.61269555]
[1742175696031,0.03,128.3,128.29,328.61269555]
[1742175696231,0.03,128.3,128.29,336.40749555]
[1742175698923,0.03,128.3,128.29,24.40749555]
[1742175702648,0.03,128.3,128.28,24.40779555]
[1742175703143,0.03,128.3,128.29,10.63507523]
[1742175705849,0.03,128.3,128.29,18.42987523]
[1742175712940,0.03,128.3,128.28,10.63507523]
[1742175717552,0.03,128.3,128.27,18.43077523]
[1742175718152,0.03,128.3,128.28,10.63507523]
[1742175718834,0.03,128.3,128.27,10.63507523]
[1742175719654,0.03,128.3,128.27,322.63507523]
[1742175720153,0.03,128.3,128.27,330.43107523]
[1742175720354,0.03,128.3,128.28,10.63507523]
[1742175721138,0.03,128.3,128.27,330.43107523]
[1742175721333,0.03,128.3,128.27,322.63507523]
[1742175721544,0.03,128.3,128.25,0.063]
[1742175721747,18.64964886,128.27,128.25,0.063]
[1742175722856,26.44574886,128.27,128.25,0.063]
[1742175724257,29.28472409,128.26,128.25,0.063]
[1742175724559,18.64964886,128.26,128.25,0.063]
[1742175725060,26.44624886,128.26,128.25,0.063]
[1742175725359,18.64964886,128.26,128.25,0.063]
[1742175725555,0.03,128.27,128.25,10.69807523]
[1742175726056,0.03,128.27,128.26,10.63507523]
[1742175727258,0.03,128.27,128.26,18.43167523]
[1742175728135,0.03,128.27,128.25,18.49497523]
[1742175728743,0.03,128.27,128.26,10.63507523]
[1742175728944,0.03,128.27,128.26,322.63507523]
[1742175729350,0.03,128.27,128.26,330.43167523]
[1742175730847,0.03,128.27,128.26,319.7966]
[1742175731052,0.03,128.27,128.26,330.43167523]
[1742175734370,0.03,128.3,128.29,20.0]
[1742175734545,0.03,128.3,128.29,30.63507523]
[1742175736457,0.03,128.3,128.29,38.42987523]
[1742175736663,0.03,128.3,128.29,38.71419837]
[1742175737475,0.03,128.3,128.29,350.71419837]
[1742175739869,0.03,128.3,128.29,330.42987523]
[1742175740170,0.03,128.3,128.29,38.42987523]
[1742175741058,0.03,128.3,128.29,38.71419837]
[1742175741471,10.66507523,128.3,128.25,7.6601]
[1742175741666,10.66507523,128.3,128.25,18.29517523]
[1742175741872,18.67964886,128.3,128.25,18.29517523]
[1742175743058,18.67964886,128.3,128.25,330.29517523]
[1742175743375,0.03,128.3,128.26,10.63507523]
[1742175744058,0.03,128.3,128.27,10.63507523]
[1742175744266,0.03,128.3,128.29,10.63507523]
[1742175747179,0.03,128.3,128.29,16.61327185]
[1742175747361,0.03,128.3,128.29,328.61327185]
[1742175747566,0.03,128.3,128.28,23.43327185]
[1742175748669,0.03,128.3,128.29,16.61327185]
[1742175749168,0.03,128.3,128.29,16.89759499]
[1742175749768,0.03,128.3,128.29,24.69239499]
[1742175750568,0.03,128.3,128.29,336.69239499]
[1742175751684,0.03,128.3,128.29,24.69239499]
[1742175752773,0.03,128.3,128.27,81.363]
[1742175752774,0.03,128.3,128.27,16.67627185]
[1742175753581,0.03,128.3,128.27,24.47207185]
[1742175754677,0.03,128.3,128.27,336.47207185]
[1742175754894,0.03,128.3,128.28,16.61327185]
[1742175755999,0.03,128.3,128.27,0.063]
[1742175756203,26.47424886,128.3,128.27,0.063]
[1742175760699,43.08752071,128.3,128.27,0.063]
[1742175762009,26.47424886,128.3,128.27,0.063]
[1742175763609,26.47424886,128.3,128.27,312.063]
[1742175763987,18.67964886,128.3,128.27,328.67627185]
[1742175764183,0.03,128.3,128.28,16.61327185]
[1742175765985,0.03,128.3,128.27,328.67627185]
[1742175766190,0.03,128.3,128.28,16.61327185]
[1742175766808,0.03,128.3,128.27,328.67627185]
[1742175767605,16.64327185,128.3,128.27,0.063]
[1742175767812,18.64964886,128.29,128.27,0.063]
[1742175769001,18.64964886,128.29,128.27,16.67627185]
[1742175770618,18.64964886,128.29,128.27,328.67627185]
[1742175770799,18.64964886,128.29,128.27,16.67627185]
[1742175771200,18.64964886,128.29,128.27,0.063]
[1742175771619,26.44444886,128.29,128.27,0.063]
[1742175773421,26.47444886,128.29,128.27,0.063]
[1742175774405,26.47444886,128.29,128.27,10.70158971]
[1742175775402,26.47444886,128.29,128.27,0.063]
[1742175781008,37.11303857,128.29,128.27,0.063]
[1742175781825,10.63858971,128.28,128.27,0.063]
[1742175782023,29.28823857,128.28,128.27,0.063]
[1742175782230,30.84213857,128.28,128.27,0.063]
[1742175783318,38.63753857,128.28,128.27,0.063]
[1742175783918,18.64964886,128.27,128.25,0.063]
[1742175784228,29.28823857,128.26,128.25,0.063]
[1742175784441,18.64964886,128.26,128.25,0.063]
[1742175788439,26.44624886,128.26,128.25,0.063]
[1742175790732,18.64964886,128.26,128.25,0.063]
[1742175790934,26.44624886,128.26,128.25,0.063]
[1742175791143,18.64964886,128.26,128.25,0.063]
[1742175793226,18.64964886,128.27,128.25,0.063]
[1742175794540,26.44574886,128.27,128.25,0.063]
[1742175794737,37.08433857,128.27,128.25,0.063]
[1742175796123,26.44574886,128.27,128.25,0.063]
[1742175796443,37.08433857,128.27,128.25,0.063]
[1742175796629,29.28823857,128.26,128.25,0.063]
[1742175796832,18.64964886,128.26,128.25,0.063]
[1742175797029,29.28823857,128.26,128.25,0.063]
[1742175798737,26.44624886,128.26,128.25,0.063]
[1742175799822,37.08483857,128.26,128.25,0.063]
[1742175801245,26.44624886,128.26,128.25,0.063]
[1742175802431,18.64964886,128.26,128.25,0.063]
[1742175804148,37.08483857,128.26,128.25,0.063]
[1742175806841,26.44624886,128.26,128.25,0.063]
[1742175809853,18.64964886,128.26,128.25,0.063]
[1742175811850,0.03,128.28,128.25,0.063]
[1742175816257,0.03,128.28,128.27,10.63858971]
[1742175817160,0.03,128.28,128.27,18.43458971]
[1742175818467,0.03,128.28,128.27,10.63858971]
[1742175820057,0.03,128.28,128.27,322.63858971]
[1742175822770,0.03,128.28,128.27,312.0]
[1742175823167,0.03,128.28,128.26,10.63858971]
[1742175823481,18.67964886,128.28,128.25,17.52158971]
[1742175824585,7.8257,128.28,128.25,17.52158971]
[1742175824976,7.8257,128.28,128.25,10.70158971]
[1742175825676,18.67964886,128.28,128.25,10.70158971]
[1742175826287,18.67964886,128.28,128.25,322.70158971]
[1742175826489,18.67964886,128.28,128.25,10.70158971]
[1742175826878,18.67964886,128.28,128.25,0.063]
[1742175827998,7.796,128.27,128.25,0.063]
[1742175829184,26.47524886,128.28,128.25,0.063]
[1742175831898,37.11383857,128.28,128.25,0.063]
[1742175832601,56.60243857,128.28,128.25,0.063]
[1742175832804,18.64964886,128.26,128.25,0.063]
[1742175833383,18.64964886,128.27,128.25,0.063]
[1742175834403,29.28823857,128.27,128.25,0.063]
[1742175834797,18.43518971,128.26,128.25,0.063]
[1742175837103,18.71951285,128.26,128.25,0.063]
[1742175842013,18.43518971,128.26,128.25,0.063]
[1742175843414,37.08483857,128.26,128.25,0.063]
[1742175844797,18.64964886,128.26,128.25,0.063]
[1742175848919,26.44624886,128.26,128.25,0.063]
[1742175849791,37.08483857,128.26,128.25,0.063]
[1742175852494,37.36916171,128.26,128.25,0.063]
[1742175855825,10.63858971,128.23,128.18,14.5269]
[1742175856009,10.63858971,128.23,128.18,25.16548971]
[1742175857311,18.64964886,128.21,128.18,25.16548971]
[1742175857511,18.64964886,128.21,128.19,10.63858971]
[1742175862035,18.64964886,128.21,128.18,25.16548971]
[1742175863431,7.7998,128.21,128.18,25.16548971]
[1742175863609,7.7998,128.21,128.18,18.34548971]
[1742175866134,26.44864886,128.22,128.18,18.34548971]
[1742175866527,26.44814886,128.23,128.19,10.63858971]
[1742175870019,26.44814886,128.23,128.19,18.43938971]
[1742175870535,26.44814886,128.23,128.19,10.63858971]
[1742175870940,26.44814886,128.23,128.18,327.5713]
[1742175871139,37.08673857,128.23,128.18,18.40848971]
[1742175871943,29.28823857,128.22,128.18,18.40848971]
[1742175872142,18.64964886,128.2,128.18,7.7699]
[1742175872345,18.64964886,128.2,128.18,0.063]
[1742175872515,29.28823857,128.2,128.18,0.063]
[1742175872936,18.64964886,128.2,128.18,0.063]
[1742175875048,26.45014886,128.2,128.18,0.063]
[1742175875351,37.08873857,128.2,128.18,0.063]
[1742175875724,29.28823857,128.19,128.18,0.063]
[1742175876636,37.08913857,128.19,128.18,0.063]
[1742175878451,26.45054886,128.19,128.18,0.063]
[1742175878650,37.08913857,128.19,128.18,0.063]
[1742175879325,26.45054886,128.19,128.18,0.063]
[1742175880228,18.64964886,128.19,128.18,0.063]
[1742175881351,34.67162314,128.23,128.18,10.70158971]
[1742175881352,40.5987,128.23,128.18,10.70158971]
[1742175881536,18.64964886,128.22,128.19,10.63858971]
[1742175881847,18.64964886,128.23,128.19,10.63858971]
[1742175882742,26.44814886,128.23,128.19,10.63858971]
[1742175885255,37.08673857,128.23,128.19,10.63858971]
[1742175886156,37.08673857,128.23,128.18,10.70158971]
[1742175887930,10.63858971,128.22,128.18,0.063]
[1742175888462,10.63858971,128.22,128.18,10.70158971]
[1742175889054,18.43818971,128.22,128.18,10.70158971]
[1742175890533,7.7996,128.22,128.18,10.70158971]
[1742175891947,29.28823857,128.23,128.19,10.63858971]
[1742175891948,18.64964886,128.23,128.19,10.63858971]
[1742175892262,29.28823857,128.23,128.19,10.63858971]
[1742175893659,37.08723857,128.23,128.19,10.63858971]
[1742175894044,37.08723857,128.23,128.18,0.063]
[1742175894354,10.63858971,128.22,128.18,10.70158971]
[1742175895742,18.64964886,128.2,128.18,0.063]
[1742175897755,26.45004886,128.2,128.18,0.063]
[1742175911269,10.63858971,128.22,128.18,0.063]
[1742175911461,18.64964886,128.22,128.18,0.063]
[1742175911861,18.64964886,128.23,128.19,10.63858971]
[1742175912679,26.44854886,128.23,128.19,10.63858971]
[1742175914085,37.08713857,128.23,128.19,10.63858971]
[1742175917077,18.67964886,128.25,128.21,10.63858971]
[1742175917455,18.67964886,128.25,128.22,10.63858971]
[1742175918254,0.03,128.25,128.23,10.63858971]
[1742175918855,0.03,128.25,128.24,10.63858971]
[1742175919977,0.03,128.25,128.23,10.63858971]
[1742175920278,0.03,128.25,128.23,18.43698971]
[1742175920780,0.03,128.25,128.24,10.63858971]
[1742175924089,0.03,128.25,128.24,18.43638971]
[1742175925895,0.03,128.25,128.24,330.43638971]
[1742175927082,0.03,128.25,128.24,330.57855128]
[1742175927461,0.03,128.25,128.24,344.47357943]
[1742175928566,0.03,128.27,128.26,20.0]
[1742175928767,0.03,128.27,128.26,37.43858971]
[1742175930168,0.03,128.27,128.26,45.23518971]
[1742175931986,0.03,128.27,128.26,357.23518971]
[1742175932170,0.03,128.27,128.26,349.43858971]
[1742175932373,0.03,128.27,128.26,357.23518971]
[1742175934275,0.03,128.27,128.26,357.37735128]
[1742175935697,0.03,128.27,128.26,365.50031285]
[1742175935868,0.03,128.27,128.26,53.50031285]
[1742175936382,0.03,128.28,128.27,0.14216157]
[1742175936583,0.03,128.28,128.27,10.78075128]
[1742175936785,0.03,128.28,128.27,53.47727169]
[1742175937678,0.03,128.28,128.27,61.27327169]
[1742175938492,0.0001,128.28,128.27,61.27327169]
[1742175938697,0.03,128.29,128.27,62.94203868]
[1742175938904,0.03,128.29,128.28,53.33511012]
[1742175939776,0.03,128.29,128.28,61.13051012]
[1742175940798,18.64964886,128.28,128.22,8.0438]
[1742175940992,18.64964886,128.28,128.23,10.63858971]
[1742175941187,18.64964886,128.28,128.25,0.063]
[1742175941377,0.03,128.29,128.25,10.70158971]
[1742175941582,0.03,128.28,128.25,10.70158971]
[1742175942404,0.03,128.28,128.26,10.63858971]
[1742175945282,26.03414886,128.3,128.25,10.70158971]
[1742175945488,36.67273857,128.3,128.25,10.70158971]
[1742175945690,56.15823857,128.3,128.25,10.70158971]
[1742175947797,18.64964886,128.28,128.25,0.063]
[1742175948405,18.64964886,128.28,128.25,10.70158971]
[1742175948798,7.796,128.27,128.25,10.70158971]
[1742175949888,7.796,128.27,128.25,0.063]
[1742175953011,29.28823857,128.26,128.25,0.063]
[1742175953219,18.64964886,128.26,128.25,0.063]
[1742175953818,18.64964886,128.27,128.25,0.063]
[1742175957096,7.7955,128.28,128.25,0.063]
[1742175957420,18.64964886,128.29,128.25,10.70158971]
[1742175957606,0.03,128.3,128.25,10.70158971]
[1742175957806,18.67964886,128.3,128.26,10.63858971]
[1742175958819,18.67964886,128.3,128.26,18.43498971]
[1742175960528,26.47394886,128.3,128.26,10.63858971]
[1742175960699,37.11253857,128.3,128.26,312.0]
[1742175960899,37.11253857,128.3,128.25,17.50158971]
[1742175961099,26.47394886,128.3,128.25,25.29858971]
[1742175962225,26.47394886,128.3,128.26,18.43508971]
[1742175962226,0.03,128.3,128.26,18.43508971]
[1742175962429,0.03,128.3,128.27,10.63858971]
[1742175962728,0.03,128.3,128.29,10.63858971]
[1742175963249,0.03,128.3,128.29,17.43858971]
[1742175963802,0.03,128.3,128.29,25.23338971]
[1742175964006,0.03,128.3,128.29,337.23338971]
[1742175966134,0.03,128.3,128.29,337.37555128]
[1742175966430,0.03,128.3,128.29,345.41945128]
[1742175968008,0.03,128.3,128.29,345.27728971]
[1742175969435,0.03,128.3,128.29,33.56161285]
[1742175969727,0.03,128.32,128.31,20.14216157]
[1742175969925,0.03,128.32,128.31,20.28432314]
[1742175970119,0.03,128.32,128.31,30.92291285]
[1742175971717,0.03,128.32,128.31,38.71651285]
[1742175972401,0.03,128.32,128.31,38.57435128]
[1742175972616,0.03,128.32,128.31,350.57435128]
[1742175979936,0.03,128.32,128.31,38.57435128]
[1742175982926,0.03,128.32,128.31,350.57435128]
[1742175987539,0.03,128.32,128.31,350.71651285]
[1742175987739,0.0001,128.32,128.31,38.71651285]
[1742175988618,0.0001,128.32,128.31,57.36616171]
[1742175989143,0.0001,128.32,128.31,138.16616171]
[1742175990750,0.0001,128.32,128.31,450.16616171]
[1742175991154,0.03,128.34,128.32,0.14216157]
[1742175991355,0.03,128.34,128.33,60.13511012]
[1742175991938,0.03,128.34,128.33,17.58075128]
[1742175993057,0.03,128.34,128.33,25.37315128]
[1742175994357,0.03,128.34,128.33,337.37315128]
[1742175994859,0.03,128.34,128.33,341.21368514]
[1742175996342,0.03,128.34,128.33,383.76804398]
[1742175996751,0.03,128.34,128.33,341.21368514]
[1742175997251,0.03,128.34,128.33,383.76804398]
[1742175997648,0.03,128.34,128.33,341.21368514]
[1742176004768,0.03,128.34,128.33,341.35584671]
[1742176006668,0.03,128.38,128.36,20.0]
[1742176006963,0.03,128.38,128.37,17.43858971]
[1742176008070,0.03,128.38,128.37,25.22848971]
[1742176009273,0.03,128.38,128.37,14.5899]
[1742176009777,0.03,128.38,128.37,326.5899]
[1742176009954,0.03,128.38,128.37,337.22848971]
[1742176010271,37.06545573,128.47,128.37,337.22848971]
[1742176010272,220.42617477,128.73,128.63,0.5]
[1742176010467,179.32644875,128.71,128.68,10.63858971]
[1742176010669,179.32644875,128.71,128.67,4.05996507]
[1742176011267,186.74644875,128.71,128.67,4.05996507]
[1742176011475,205.76158542,128.71,128.67,4.05996507]
[1742176011766,179.32644875,128.71,128.67,30.49510174]
[1742176011966,0.25059066,128.72,128.67,30.49510174]
[1742176011967,0.25059066,128.72,128.68,26.43513667]
[1742176012374,0.25059066,128.72,128.67,11.51996507]
[1742176012749,0.25059066,128.72,128.71,26.43513667]
[1742176013178,2.8230934,128.76,128.71,26.43513667]
[1742176013362,2.8230934,128.76,128.73,26.43513667]
[1742176013550,2.8230934,128.76,128.71,42.45698591]
[1742176013750,2.8230934,128.76,128.71,16.02184924]
[1742176013972,2.8230934,128.76,128.71,42.45698591]
[1742176014350,2.8230934,128.76,128.71,16.02184924]
[1742176014551,26.43513667,128.77,128.72,134.10053004]
[1742176014766,26.43513667,128.76,128.72,134.10053004]
[1742176015070,7.48,128.86,128.75,26.43513667]
[1742176015273,7.48,128.86,128.72,142.08053004]
[1742176015274,26.43513667,128.83,128.72,142.08053004]
[1742176015471,26.43513667,128.83,128.76,26.43513667]
[1742176015671,26.43513667,128.82,128.75,26.43513667]
[1742176015979,26.43513667,128.82,128.76,43.14927893]
[1742176016185,26.43513667,128.79,128.76,43.14927893]
[1742176016353,4.16912347,128.83,128.77,16.02184924]
[1742176016552,26.43513667,128.78,128.77,16.02184924]
[1742176017077,26.43513667,128.78,128.77,54.95434606]
[1742176017277,26.43513667,128.78,128.77,76.43567972]
[1742176017853,26.43513667,128.78,128.77,37.5031829]
[1742176018056,26.43513667,128.78,128.77,76.43567972]
[1742176018281,0.5,128.83,128.77,76.43567972]
[1742176018781,26.43513667,128.78,128.77,76.43567972]
[1742176019168,26.43513667,128.79,128.77,76.43567972]
[1742176019362,26.43513667,128.78,128.77,37.5031829]
[1742176019881,26.43513667,128.78,128.77,21.48133366]
[1742176020085,26.43513667,128.79,128.77,21.48133366]
[1742176020258,18.64964886,128.79,128.77,21.48133366]
[1742176020763,26.43513667,128.79,128.77,21.48133366]
[1742176021582,26.43513667,128.78,128.77,21.48133366]
[1742176021770,26.43513667,128.78,128.72,88.28]
[1742176021771,45.08478553,128.78,128.72,88.28]
[1742176021971,26.43513667,128.77,128.72,88.28]
[1742176022469,26.43513667,128.77,128.72,88.24]
[1742176022861,45.08478553,128.78,128.72,114.67513667]
[1742176023069,0.14216157,128.83,128.74,26.43513667]
[1742176023070,18.64964886,128.79,128.74,26.43513667]
[1742176023304,45.08478553,128.79,128.73,26.43513667]
[1742176024478,26.43513667,128.78,128.72,114.67513667]
[1742176024687,26.43513667,128.76,128.72,88.24]
[1742176025087,18.64964886,128.79,128.69,107.23513667]
[1742176025088,26.43513667,128.74,128.69,107.23513667]
[1742176025286,26.43513667,128.74,128.69,80.8]
[1742176025475,0.28432314,128.78,128.69,80.8]
[1742176025476,26.43513667,128.73,128.69,80.8]
[1742176025679,0.28432314,128.78,128.69,80.8]
[1742176025680,26.43513667,128.74,128.69,80.8]
[1742176025884,26.43513667,128.74,128.69,107.23513667]
[1742176026077,0.28432314,128.78,128.69,107.23513667]
[1742176026078,26.43513667,128.75,128.69,107.23513667]
[1742176026293,0.28432314,128.78,128.73,26.43513667]
[1742176026294,26.43513667,128.78,128.73,26.43513667]
[1742176026590,26.43513667,128.79,128.73,33.85513667]
[1742176026795,26.43513667,128.78,128.73,33.85513667]
[1742176027593,26.43513667,128.78,128.73,7.42]
[1742176027793,26.43513667,128.77,128.73,7.42]
[1742176028175,26.43513667,128.78,128.73,7.42]
[1742176028381,206.22,128.84,128.73,7.42]
[1742176028382,0.5,128.9,128.77,26.43513667]
[1742176028582,26.43513667,128.86,128.81,26.43513667]
[1742176028784,26.43513667,128.86,128.8,26.43513667]
[1742176028967,26.43513667,128.85,128.8,26.43513667]
[1742176029374,26.43513667,128.85,128.7,80.8]
[1742176029375,18.64964886,128.8,128.7,80.8]
[1742176029574,26.43513667,128.73,128.7,80.8]
[1742176029795,26.43513667,128.71,128.66,7.5]
[1742176029977,26.43513667,128.69,128.66,7.5]
[1742176030178,26.43513667,128.7,128.66,7.5]
[1742176030389,26.43513667,128.7,128.67,5.54999297]
[1742176030589,26.43513667,128.71,128.67,5.54999297]
[1742176031296,26.43513667,128.73,128.68,26.43513667]
[1742176031471,26.43513667,128.74,128.68,26.43513667]
[1742176031899,26.43513667,128.73,128.68,26.43513667]
[1742176032092,34.20263667,128.74,128.68,26.43513667]
[1742176032394,34.20263667,128.74,128.67,80.8]
[1742176032697,26.43513667,128.73,128.68,26.43513667]
[1742176032887,34.20263667,128.74,128.68,26.43513667]
[1742176033199,34.20263667,128.74,128.69,26.43513667]
[1742176033200,7.7675,128.74,128.69,26.43513667]
[1742176033697,34.20263667,128.74,128.69,26.43513667]
[1742176033901,18.64964886,128.76,128.68,26.43513667]
[1742176033902,7.7688,128.72,128.68,26.43513667]
[1742176034081,19.4174,128.75,128.68,26.43513667]
[1742176034284,26.43513667,128.74,128.69,26.43513667]
[1742176034488,7.7675,128.74,128.7,26.43513667]
[1742176034689,18.64964886,128.78,128.71,7.5]
[1742176034690,7.7651,128.78,128.71,7.5]
[1742176034892,7.7651,128.78,128.75,26.43513667]
[1742176035395,0.03,128.79,128.77,26.43513667]
[1742176035776,0.03,128.79,128.78,26.43513667]
[1742176037303,0.03,128.79,128.77,107.23513667]
[1742176037503,0.03,128.79,128.77,146.16763349]
[1742176037692,26.43513667,128.82,128.77,119.73249682]
[1742176037879,206.30432314,128.87,128.77,119.73249682]
[1742176037880,0.28432314,128.86,128.77,119.73249682]
[1742176038076,168.81486815,128.87,128.77,119.73249682]
[1742176038279,26.43513667,128.81,128.77,119.73249682]
[1742176038475,26.43513667,128.8,128.77,38.93249682]
[1742176039090,7.7603,128.86,128.79,38.16024831]
[1742176039300,7.7603,128.86,128.81,26.43513667]
[1742176039483,7.7603,128.86,128.82,7.54]
[1742176039685,34.19543667,128.86,128.82,7.54]
[1742176040100,34.19503667,128.87,128.82,7.54]
[1742176040300,26.43513667,128.88,128.82,33.97513667]
[1742176040598,26.43513667,128.87,128.82,7.54]
[1742176041691,0.03,128.92,128.86,26.43513667]
[1742176041897,0.03,128.92,128.9,26.43513667]
[1742176042204,0.03,128.92,128.91,26.43513667]
[1742176043080,0.03,128.92,128.9,107.23513667]
[1742176043399,0.03,128.92,128.91,45.08478553]
[1742176043600,0.03,128.92,128.91,107.23513667]
[1742176043783,0.03,128.92,128.9,7.62]
[1742176044196,0.03,128.92,128.9,34.05513667]
[1742176044394,2.7586138,129.02,128.92,80.77]
[1742176044588,10.5093138,129.02,128.97,26.43513667]
[1742176044796,10.5093138,129.02,128.97,34.11513667]
[1742176044995,36.94445047,129.02,128.97,7.68]
[1742176045513,26.43513667,129.01,128.95,26.43513667]
[1742176045687,46.43513667,128.99,128.94,7.68]
[1742176045896,26.43513667,128.98,128.92,107.20513667]
[1742176046080,26.43513667,128.96,128.9,107.20513667]
[1742176046280,26.43513667,128.95,128.9,80.77]
[1742176046478,7.7541,128.97,128.89,114.88513667]
[1742176046684,7.7513,129.01,128.95,26.43513667]
[1742176046898,7.7513,129.01,128.95,34.13513667]
[1742176047098,7.7513,129.01,128.96,26.43513667]
[1742176047798,36.94455047,129.02,128.96,26.43513667]
[1742176048201,2.7586138,129.02,128.96,107.20513667]
[1742176048503,2.7586138,129.02,128.98,26.43513667]
[1742176049182,2.7586138,129.02,128.98,39.45621976]
[1742176049385,10.5095138,129.02,128.98,39.45621976]
[1742176049609,49.96573356,129.02,128.96,120.22621976]
[1742176050284,49.96573356,129.02,128.96,127.90621976]
[1742176051211,49.96573356,129.02,128.96,88.45]
[1742176051522,1.67616985,129.01,128.96,88.45]
[1742176051809,29.8863138,129.02,128.96,88.45]
[1742176051810,47.20811976,129.0,128.96,88.45]
[1742176052288,7.7519,129.0,128.96,88.45]
[1742176053016,47.20811976,129.0,128.96,88.45]
[1742176053326,7.7519,129.0,128.96,88.45]
[1742176053806,7.7519,129.0,128.96,7.68]
[1742176054115,47.20811976,129.0,128.96,7.68]
[1742176054695,7.7519,129.0,128.96,7.68]
[1742176054894,7.7519,129.0,128.96,7.743]
[1742176056001,27.1317,129.0,128.96,0.063]
[1742176056211,39.45621976,128.98,128.96,0.063]
[1742176056410,7.7519,129.0,128.97,7.66]
[1742176057499,2.7586138,129.02,128.97,127.88621976]